fUSD/lending_fUSD_20250616
["ID","MTS","AMOUNT","RATE_DAILY","PERIOD"]
[366115472,1750071871636,677.42,0.00015252,2]
[366115475,1750072013801,165.92,0.00012279,2]
[366115476,1750072031652,201.0,0.00014862,2]
[366115477,1750072055000,906.68,0.00015348,2]
[366115479,1750072092237,205.0,0.00015152,2]
[366115480,1750072093536,158.79,0.00013699,2]
[366115481,1750072141494,168.0,0.00015431,2]
[366115482,1750072191169,167.32,0.00015219,2]
[366115483,1750072225119,615.56,0.00015228,2]
[366115489,1750072231462,-1200.0,0.00015498,2]
[366115490,1750072231472,-1548.0,0.00015499,2]
[366115491,1750072231482,-500.0,0.00015499,2]
[366115492,1750072231492,-500.0,0.00015499,2]
[366115494,1750072231502,-325.66949931,0.00015499,2]
[366115495,1750072231511,-623.0,0.00015534,2]
[366115496,1750072231521,-623.0,0.00015559,2]
[366115497,1750072231530,-623.0,0.00015583,2]
[366115498,1750072231540,-623.0,0.00015585,2]
[366115499,1750072231549,-200.0,0.00015629,2]
[366115500,1750072231559,-151.0,0.00015695,2]
[366115501,1750072231568,-151.0,0.00015697,2]
[366115502,1750072231577,-151.0,0.00015698,2]
[366115503,1750072231587,-151.0,0.00015698,2]
[366115504,1750072231597,-151.0,0.00015698,2]
[366115505,1750072231607,-207.4,0.0001574,2]
[366115506,1750072231617,-300.0,0.000159,5]
[366115507,1750072231626,-200.0,0.00016,2]
[366115508,1750072231635,-700.0,0.00016,5]
[366115509,1750072231645,-1100.0,0.000161,5]
[366115510,1750072231655,-500.0,0.00016164,2]
[366115511,1750072231664,-500.0,0.00016164,2]
[366115512,1750072231674,-1033.21,0.000162,2]
[366115513,1750072231683,-737.4,0.000162,2]
[366115514,1750072231693,-1164.67,0.000162,2]
[366115515,1750072231703,-1500.0,0.000162,5]
[366115516,1750072231712,-1900.0,0.000163,5]
[366115517,1750072231722,-493.12,0.00016318,2]
[366115518,1750072231731,-507.41,0.00016318,2]
[366115519,1750072231741,-303.73,0.00016318,2]
[366115520,1750072231750,-175.28608274,0.00016338,2]
[366115521,1750072231759,-156.31236705,0.00016338,2]
[366115522,1750072231769,-709.3325083,0.00016338,2]
[366115523,1750072231779,-501.77,0.00016338,2]
[366115524,1750072231789,-305.3,0.00016338,2]
[366115525,1750072231800,-507.58,0.00016338,2]
[366115526,1750072231809,-498.75,0.00016338,2]
[366115527,1750072231819,-302.93,0.00016338,2]
[366115528,1750072231833,-152.0,0.00016356,3]
[366115529,1750072231843,-709.33250827,0.00016393,2]
[366115530,1750072231853,-300.0,0.000164,5]
[366115531,1750072231863,-1510.46038864,0.000164,2]
[366115532,1750072231874,-1510.46038836,0.000164,2]
[366115533,1750072231884,-1510.46038836,0.000164,2]
[366115534,1750072231894,-1510.46038836,0.000164,2]
[366115535,1750072231906,-1510.46038836,0.000164,2]
[366115536,1750072231916,-1510.46038836,0.000164,2]
[366115537,1750072231926,-755.32478816,0.000164,2]
[366115538,1750072231938,-329.75,0.000164,2]
[366115539,1750072231963,-425.3856002,0.000164,2]
[366115540,1750072231973,-1510.46038836,0.000164,2]
[366115541,1750072231982,-1064.15401144,0.000164,2]
[366115542,1750072231999,-446.30637692,0.000164,2]
[366115543,1750072232009,-1006.69362308,0.000164,2]
[366115544,1750072232022,-503.76676528,0.000164,2]
[366115545,1750072232032,-1510.46038836,0.000164,2]
[366115547,1750072232041,-285.77284636,0.000164,2]
[366115549,1750072232054,-1224.687542,0.000164,2]
[366115551,1750072232063,-1510.46038836,0.000164,2]
[366115552,1750072232073,-1510.46038836,0.000164,2]
[366115553,1750072232082,-1510.46038836,0.000164,2]
[366115554,1750072232091,-1510.46038836,0.00016417,2]
[366115555,1750072232101,-151.0,0.00016427,2]
[366115556,1750072232112,-205.0,0.00016433,3]
[366115557,1750072232122,-775.242218,0.00016437,2]
[366115558,1750072232132,-157.51895196,0.00016437,2]
[366115559,1750072232141,-167912.01894939,0.00016437,2]
[366115568,1750072237475,-6535.72417078,0.00016437,2]
[366115569,1750072237488,-254.35520314,0.00016437,2]
[366115570,1750072237600,-590.7376096,0.00016437,2]
[366115571,1750072237612,-380.559999,0.00016437,2]
[366115572,1750072237647,-2018.72589992,0.00016437,2]
[366115729,1750072239474,-5538.57770003,0.00016437,2]
[366115758,1750072239739,-68943.09126336,0.00016437,2]
[366115760,1750072239750,-151.0,0.00016438,2]
[366115762,1750072239759,-504.113114,0.00016438,2]
[366115764,1750072239769,-504.113114,0.00016438,2]
[366115766,1750072239779,-151.0,0.00016438,2]
[366115768,1750072239790,-195.861538,0.00016438,2]
[366115770,1750072239800,-195.861538,0.00016438,2]
[366115772,1750072239811,-500.0,0.00016438,2]
[366115774,1750072239821,-500.0,0.00016438,2]
[366115776,1750072239835,-255.42441193,0.00016438,2]
[366115778,1750072239846,-490.0,0.00016438,2]
[366115780,1750072239856,-647.71,0.00016438,2]
[366115782,1750072239867,-723.2,0.00016438,2]
[366115784,1750072239877,-772.23,0.00016438,2]
[366115787,1750072239887,-490.0,0.00016438,2]
[366115788,1750072239897,-490.0,0.00016438,2]
[366115791,1750072239910,-490.0,0.00016438,2]
[366115793,1750072239921,-490.0,0.00016438,2]
[366115795,1750072239931,-490.0,0.00016438,2]
[366115797,1750072239941,-490.0,0.00016438,2]
[366115799,1750072239951,-1126.28,0.00016438,2]
[366115801,1750072239961,-547.2,0.00016438,2]
[366115803,1750072239970,-501.248759,0.00016438,2]
[366115805,1750072239980,-490.0,0.00016438,2]
[366115807,1750072239989,-490.0,0.00016438,2]
[366115809,1750072239999,-501.248759,0.00016438,2]
[366115811,1750072240009,-490.0,0.00016438,2]
[366115813,1750072240019,-490.0,0.00016438,2]
[366115815,1750072240030,-490.0,0.00016438,2]
[366115817,1750072240040,-490.0,0.00016438,2]
[366115819,1750072240051,-490.0,0.00016438,2]
[366115821,1750072240061,-622.74,0.00016438,2]
[366115823,1750072240071,-490.0,0.00016438,2]
[366115825,1750072240081,-151.0,0.00016438,2]
[366115827,1750072240091,-490.0,0.00016438,2]
[366115829,1750072240101,-490.0,0.00016438,2]
[366115831,1750072240110,-1221.44,0.00016438,2]
[366115833,1750072240120,-490.0,0.00016438,2]
[366115835,1750072240129,-490.0,0.00016438,2]
[366115837,1750072240139,-490.0,0.00016438,2]
[366115840,1750072240148,-490.0,0.00016438,2]
[366115842,1750072240158,-490.0,0.00016438,2]
[366115844,1750072240167,-490.0,0.00016438,2]
[366115846,1750072240177,-490.0,0.00016438,2]
[366115848,1750072240186,-490.0,0.00016438,2]
[366115850,1750072240196,-490.0,0.00016438,2]
[366115852,1750072240205,-490.0,0.00016438,2]
[366115854,1750072240215,-490.0,0.00016438,2]
[366115892,1750072240224,-490.0,0.00016438,2]
[366115893,1750072240646,-490.0,0.00016438,2]
[366115894,1750072240658,-534.65,0.00016438,2]
[366115895,1750072240671,-490.0,0.00016438,2]
[366115896,1750072240680,-490.0,0.00016438,2]
[366115897,1750072240690,-490.0,0.00016438,2]
[366115898,1750072240701,-490.0,0.00016438,2]
[366115900,1750072240711,-490.0,0.00016438,2]
[366115902,1750072240721,-490.0,0.00016438,2]
[366115904,1750072240731,-490.0,0.00016438,2]
[366115906,1750072240741,-300.0,0.00016438,2]
[366115908,1750072240750,-490.0,0.00016438,2]
[366115910,1750072240760,-789.27,0.00016438,2]
[366115912,1750072240770,-482.37981711,0.00016438,2]
[366115914,1750072240780,-490.0,0.00016438,2]
[366115916,1750072240789,-643.76,0.00016438,2]
[366115918,1750072240799,-490.0,0.00016438,2]
[366115920,1750072240810,-490.0,0.00016438,2]
[366115922,1750072240819,-490.0,0.00016438,2]
[366115924,1750072240832,-490.0,0.00016438,2]
[366115926,1750072240841,-490.0,0.00016438,2]
[366115928,1750072240851,-490.0,0.00016438,2]
[366115930,1750072240861,-490.0,0.00016438,2]
[366115932,1750072240872,-490.0,0.00016438,2]
[366115934,1750072240882,-490.0,0.00016438,2]
[366115936,1750072240891,-490.0,0.00016438,2]
[366115938,1750072240903,-490.0,0.00016438,2]
[366115940,1750072240913,-490.0,0.00016438,2]
[366115942,1750072240922,-490.0,0.00016438,2]
[366115944,1750072240932,-490.0,0.00016438,2]
[366115946,1750072240942,-490.0,0.00016438,2]
[366115948,1750072240953,-490.0,0.00016438,2]
[366115950,1750072240963,-490.0,0.00016438,2]
[366115952,1750072240973,-490.0,0.00016438,2]
[366115954,1750072240982,-490.0,0.00016438,2]
[366115956,1750072240992,-490.0,0.00016438,2]
[366115958,1750072241002,-490.0,0.00016438,2]
[366115960,1750072241011,-490.0,0.00016438,2]
[366115962,1750072241021,-587.82,0.00016438,2]
[366115964,1750072241031,-490.0,0.00016438,2]
[366115966,1750072241041,-490.0,0.00016438,2]
[366115969,1750072241052,-490.0,0.00016438,2]
[366115971,1750072241061,-630.14,0.00016438,2]
[366115972,1750072241071,-965.34,0.00016438,2]
[366115974,1750072241080,-490.0,0.00016438,2]
[366115976,1750072241089,-490.0,0.00016438,2]
[366115978,1750072241099,-1145.94,0.00016438,2]
[366115980,1750072241108,-585.32,0.00016438,2]
[366115982,1750072241118,-1394.33,0.00016438,2]
[366115984,1750072241127,-490.0,0.00016438,2]
[366115986,1750072241136,-490.0,0.00016438,2]
[366115988,1750072241146,-490.0,0.00016438,2]
[366115990,1750072241155,-490.0,0.00016438,2]
[366115992,1750072241164,-490.0,0.00016438,2]
[366115994,1750072241174,-490.0,0.00016438,2]
[366115996,1750072241183,-490.0,0.00016438,2]
[366115998,1750072241192,-490.0,0.00016438,2]
[366116000,1750072241202,-250.0,0.00016438,2]
[366116002,1750072241211,-490.0,0.00016438,2]
[366116004,1750072241220,-490.0,0.00016438,2]
[366116006,1750072241229,-490.0,0.00016438,2]
[366116008,1750072241238,-490.0,0.00016438,2]
[366116010,1750072241248,-490.0,0.00016438,2]
[366116012,1750072241258,-490.0,0.00016438,2]
[366116014,1750072241267,-490.0,0.00016438,2]
[366116016,1750072241277,-490.0,0.00016438,2]
[366116019,1750072241288,-490.0,0.00016438,2]
[366116021,1750072241298,-639.1,0.00016438,2]
[366116023,1750072241307,-753.23,0.00016438,2]
[366116025,1750072241316,-490.0,0.00016438,2]
[366116027,1750072241326,-841.37,0.00016438,2]
[366116029,1750072241335,-490.0,0.00016438,2]
[366116031,1750072241345,-490.0,0.00016438,2]
[366116033,1750072241355,-490.0,0.00016438,2]
[366116035,1750072241364,-490.0,0.00016438,2]
[366116037,1750072241376,-904.41,0.00016438,2]
[366116039,1750072241386,-490.0,0.00016438,2]
[366116041,1750072241396,-490.0,0.00016438,2]
[366116043,1750072241405,-490.0,0.00016438,2]
[366116045,1750072241415,-920.13,0.00016438,2]
[366116047,1750072241424,-490.0,0.00016438,2]
[366116049,1750072241434,-597.32,0.00016438,2]
[366116051,1750072241443,-490.0,0.00016438,2]
[366116053,1750072241453,-1081.72,0.00016438,2]
[366116055,1750072241462,-490.0,0.00016438,2]
[366116057,1750072241472,-490.0,0.00016438,2]
[366116059,1750072241482,-490.0,0.00016438,2]
[366116061,1750072241491,-678.43,0.00016438,2]
[366116063,1750072241502,-490.0,0.00016438,2]
[366116065,1750072241511,-566.61,0.00016438,2]
[366116067,1750072241520,-490.0,0.00016438,2]
[366116069,1750072241531,-490.0,0.00016438,2]
[366116071,1750072241540,-535.84,0.00016438,2]
[366116073,1750072241550,-835.03,0.00016438,2]
[366116075,1750072241559,-490.0,0.00016438,2]
[366116077,1750072241569,-557.87,0.00016438,2]
[366116079,1750072241578,-490.0,0.00016438,2]
[366116081,1750072241587,-302.93,0.00016438,2]
[366116083,1750072241597,-490.0,0.00016438,2]
[366116085,1750072241606,-582.46,0.00016438,2]
[366116087,1750072241615,-575.01,0.00016438,2]
[366116089,1750072241624,-490.0,0.00016438,2]
[366116091,1750072241634,-490.0,0.00016438,2]
[366116093,1750072241643,-516.25,0.00016438,2]
[366116095,1750072241652,-490.0,0.00016438,2]
[366116097,1750072241661,-490.0,0.00016438,2]
[366116099,1750072241671,-490.0,0.00016438,2]
[366116101,1750072241681,-747.59,0.00016438,2]
[366116103,1750072241690,-500.15395209,0.00016438,2]
[366116105,1750072241699,-1121.89,0.00016438,2]
[366116107,1750072241708,-490.0,0.00016438,2]
[366116109,1750072241717,-490.0,0.00016438,2]
[366116111,1750072241726,-917.23,0.00016438,2]
[366116113,1750072241736,-490.0,0.00016438,2]
[366116115,1750072241746,-495.68,0.00016438,2]
[366116117,1750072241755,-1104.18,0.00016438,2]
[366116119,1750072241764,-490.0,0.00016438,2]
[366116121,1750072241774,-659.75,0.00016438,2]
[366116123,1750072241783,-490.0,0.00016438,2]
[366116125,1750072241792,-490.0,0.00016438,2]
[366116127,1750072241801,-754.41,0.00016438,2]
[366116129,1750072241811,-499.95443992,0.00016438,2]
[366116131,1750072241820,-309.65892,0.00016438,2]
[366116133,1750072241835,-853.23,0.00016438,2]
[366116135,1750072241844,-490.0,0.00016438,2]
[366116137,1750072241854,-490.0,0.00016438,2]
[366116139,1750072241863,-490.0,0.00016438,2]
[366116141,1750072241873,-490.0,0.00016438,2]
[366116143,1750072241883,-490.0,0.00016438,2]
[366116145,1750072241892,-583.62,0.00016438,2]
[366116147,1750072241902,-309.65892,0.00016438,2]
[366116149,1750072241913,-490.0,0.00016438,2]
[366116151,1750072241922,-490.0,0.00016438,2]
[366116153,1750072241932,-1136.75,0.00016438,2]
[366116155,1750072241941,-490.0,0.00016438,2]
[366116157,1750072241951,-1236.91,0.00016438,2]
[366116159,1750072241962,-490.0,0.00016438,2]
[366116161,1750072241972,-490.0,0.00016438,2]
[366116163,1750072241982,-490.0,0.00016438,2]
[366116165,1750072241992,-490.0,0.00016438,2]
[366116167,1750072242001,-490.0,0.00016438,2]
[366116169,1750072242012,-731.36,0.00016438,2]
[366116171,1750072242021,-490.0,0.00016438,2]
[366116173,1750072242031,-490.0,0.00016438,2]
[366116175,1750072242041,-490.0,0.00016438,2]
[366116177,1750072242051,-490.0,0.00016438,2]
[366116179,1750072242061,-1024.31,0.00016438,2]
[366116181,1750072242071,-490.0,0.00016438,2]
[366116183,1750072242080,-490.0,0.00016438,2]
[366116185,1750072242090,-826.36,0.00016438,2]
[366116187,1750072242100,-1103.4,0.00016438,2]
[366116189,1750072242109,-451.2024598,0.00016438,2]
[366116191,1750072242119,-491.61,0.00016438,2]
[366116193,1750072242128,-584.6,0.00016438,2]
[366116195,1750072242137,-538.62,0.00016438,2]
[366116197,1750072242147,-1255.6,0.00016438,2]
[366116199,1750072242156,-490.0,0.00016438,2]
[366116201,1750072242166,-490.0,0.00016438,2]
[366116203,1750072242176,-490.0,0.00016438,2]
[366116205,1750072242185,-568.07,0.00016438,2]
[366116208,1750072242196,-490.0,0.00016438,2]
[366116210,1750072242205,-531.72,0.00016438,2]
[366116212,1750072242215,-490.0,0.00016438,2]
[366116214,1750072242224,-490.0,0.00016438,2]
[366116216,1750072242234,-490.0,0.00016438,2]
[366116218,1750072242244,-1286.86,0.00016438,2]
[366116220,1750072242253,-490.0,0.00016438,2]
[366116222,1750072242263,-552.19,0.00016438,2]
[366116223,1750072242272,-490.0,0.00016438,2]
[366116225,1750072242282,-490.0,0.00016438,2]
[366116227,1750072242291,-630.25,0.00016438,2]
[366116229,1750072242303,-490.0,0.00016438,2]
[366116231,1750072242318,-490.0,0.00016438,2]
[366116233,1750072242327,-151.0,0.00016438,2]
[366116235,1750072242337,-736.39,0.00016438,2]
[366116239,1750072242348,-510.98,0.00016438,2]
[366116241,1750072242357,-490.0,0.00016438,2]
[366116245,1750072242368,-854.42,0.00016438,2]
[366116249,1750072242378,-490.0,0.00016438,2]
[366116252,1750072242388,-151.0,0.00016438,2]
[366116255,1750072242397,-493.58,0.00016438,2]
[366116258,1750072242407,-151.0,0.00016438,2]
[366116261,1750072242416,-764.14,0.00016438,2]
[366116262,1750072242426,-490.0,0.00016438,2]
[366116266,1750072242436,-490.0,0.00016438,2]
[366116269,1750072242448,-998.43,0.00016438,2]
[366116271,1750072242458,-216.827888,0.00016438,2]
[366116273,1750072242467,-490.0,0.00016438,2]
[366116275,1750072242476,-490.0,0.00016438,2]
[366116277,1750072242486,-490.0,0.00016438,2]
[366116279,1750072242495,-490.0,0.00016438,2]
[366116281,1750072242505,-806.76,0.00016438,2]
[366116283,1750072242514,-490.0,0.00016438,2]
[366116285,1750072242523,-490.0,0.00016438,2]
[366116287,1750072242533,-490.0,0.00016438,2]
[366116289,1750072242542,-1407.27,0.00016438,2]
[366116291,1750072242552,-745.89,0.00016438,2]
[366116293,1750072242561,-490.0,0.00016438,2]
[366116295,1750072242571,-490.0,0.00016438,2]
[366116297,1750072242581,-490.0,0.00016438,2]
[366116299,1750072242590,-490.0,0.00016438,2]
[366116301,1750072242600,-490.0,0.00016438,2]
[366116303,1750072242612,-490.0,0.00016438,2]
[366116305,1750072242622,-490.0,0.00016438,2]
[366116307,1750072242631,-151.0,0.00016438,2]
[366116309,1750072242641,-608.16,0.00016438,2]
[366116311,1750072242650,-659.29,0.00016438,2]
[366116313,1750072242660,-490.0,0.00016438,2]
[366116315,1750072242670,-1375.28,0.00016438,2]
[366116317,1750072242680,-490.0,0.00016438,2]
[366116319,1750072242690,-490.0,0.00016438,2]
[366116321,1750072242700,-490.0,0.00016438,2]
[366116323,1750072242710,-845.15,0.00016438,2]
[366116325,1750072242719,-490.0,0.00016438,2]
[366116327,1750072242729,-490.0,0.00016438,2]
[366116329,1750072242739,-490.0,0.00016438,2]
[366116331,1750072242749,-490.0,0.00016438,2]
[366116333,1750072242758,-1697.9,0.00016438,2]
[366116335,1750072242768,-490.0,0.00016438,2]
[366116337,1750072242778,-490.0,0.00016438,2]
[366116339,1750072242788,-686.3,0.00016438,2]
[366116341,1750072242798,-490.0,0.00016438,2]
[366116343,1750072242807,-409.16927831,0.00016438,2]
[366116345,1750072242816,-1052.59,0.00016438,2]
[366116348,1750072242827,-1246.45,0.00016438,2]
[366116350,1750072242838,-876.76,0.00016438,2]
[366116352,1750072242849,-490.0,0.00016438,2]
[366116354,1750072242858,-490.0,0.00016438,2]
[366116356,1750072242868,-490.0,0.00016438,2]
[366116358,1750072242879,-661.55,0.00016438,2]
[366116360,1750072242888,-490.0,0.00016438,2]
[366116362,1750072242898,-151.0,0.00016438,2]
[366116364,1750072242909,-887.18,0.00016438,2]
[366116366,1750072242919,-1901.09,0.00016438,2]
[366116368,1750072242929,-865.12,0.00016438,2]
[366116370,1750072242938,-490.0,0.00016438,2]
[366116372,1750072242947,-986.91,0.00016438,2]
[366116374,1750072242957,-490.0,0.00016438,2]
[366116376,1750072242967,-490.0,0.00016438,2]
[366116378,1750072242976,-1129.11,0.00016438,2]
[366116380,1750072242986,-490.0,0.00016438,2]
[366116382,1750072242996,-611.96,0.00016438,2]
[366116384,1750072243005,-824.64,0.00016438,2]
[366116386,1750072243015,-490.0,0.00016438,2]
[366116388,1750072243025,-490.0,0.00016438,2]
[366116390,1750072243035,-490.0,0.00016438,2]
[366116392,1750072243045,-490.0,0.00016438,2]
[366116394,1750072243055,-490.0,0.00016438,2]
[366116396,1750072243162,-490.0,0.00016438,2]
[366116397,1750072243172,-477.26711621,0.00016438,2]
[366116399,1750072243182,-490.0,0.00016438,2]
[366116401,1750072243191,-490.0,0.00016438,2]
[366116403,1750072243201,-490.0,0.00016438,2]
[366116405,1750072243211,-490.0,0.00016438,2]
[366116407,1750072243220,-490.0,0.00016438,2]
[366116409,1750072243230,-490.0,0.00016438,2]
[366116411,1750072243239,-490.0,0.00016438,2]
[366116413,1750072243249,-539.0,0.00016438,2]
[366116415,1750072243259,-547.09,0.00016438,2]
[366116417,1750072243268,-490.0,0.00016438,2]
[366116419,1750072243278,-490.0,0.00016438,2]
[366116421,1750072243288,-1275.9,0.00016438,2]
[366116424,1750072243298,-490.0,0.00016438,2]
[366116425,1750072243307,-151.0,0.00016438,2]
[366116426,1750072243316,-490.0,0.00016438,2]
[366116428,1750072243326,-490.0,0.00016438,2]
[366116430,1750072243335,-490.0,0.00016438,2]
[366116432,1750072243345,-1165.49,0.00016438,2]
[366116434,1750072243355,-1291.6,0.00016438,2]
[366116436,1750072243364,-490.0,0.00016438,2]
[366116438,1750072243374,-490.0,0.00016438,2]
[366116440,1750072243383,-490.0,0.00016438,2]
[366116441,1750072243393,-490.0,0.00016438,2]
[366116443,1750072243403,-506.86804404,0.00016438,2]
[366116445,1750072243412,-857.12,0.00016438,2]
[366116447,1750072243422,-490.0,0.00016438,2]
[366116449,1750072243431,-566.97,0.00016438,2]
[366116451,1750072243441,-976.15,0.00016438,2]
[366116453,1750072243451,-490.0,0.00016438,2]
[366116455,1750072243460,-1255.72,0.00016438,2]
[366116457,1750072243469,-490.0,0.00016438,2]
[366116459,1750072243480,-490.0,0.00016438,2]
[366116461,1750072243490,-1061.39,0.00016438,2]
[366116463,1750072243500,-1796.75,0.00016438,2]
[366116465,1750072243512,-1932.22,0.00016438,2]
[366116467,1750072243522,-490.0,0.00016438,2]
[366116469,1750072243532,-490.0,0.00016438,2]
[366116471,1750072243542,-490.0,0.00016438,2]
[366116473,1750072243551,-490.0,0.00016438,2]
[366116475,1750072243561,-596.18,0.00016438,2]
[366116477,1750072243571,-490.0,0.00016438,2]
[366116479,1750072243580,-500.35,0.00016438,2]
[366116481,1750072243590,-1186.31,0.00016438,2]
[366116482,1750072243599,-717.39,0.00016438,2]
[366116484,1750072243608,-490.0,0.00016438,2]
[366116486,1750072243618,-490.0,0.00016438,2]
[366116488,1750072243627,-582.27,0.00016438,2]
[366116490,1750072243640,-490.0,0.00016438,2]
[366116492,1750072243649,-490.0,0.00016438,2]
[366116494,1750072243659,-490.0,0.00016438,2]
[366116496,1750072243669,-775.18,0.00016438,2]
[366116497,1750072243679,-490.0,0.00016438,2]
[366116499,1750072243689,-1420.32,0.00016438,2]
[366116501,1750072243698,-356.43569014,0.00016438,2]
[366116502,1750072243707,-490.0,0.00016438,2]
[366116504,1750072243719,-591.97733761,0.00016438,2]
[366116506,1750072243733,-490.0,0.00016438,2]
[366116508,1750072243743,-978.41,0.00016438,2]
[366116509,1750072243752,-1150.36,0.00016438,2]
[366116510,1750072243762,-490.0,0.00016438,2]
[366116511,1750072243771,-702.17,0.00016438,2]
[366116512,1750072243781,-2183.87,0.00016438,2]
[366116513,1750072243790,-489.45315941,0.00016438,2]
[366116514,1750072243799,-516.08286717,0.00016438,2]
[366116515,1750072243808,-1300.87,0.00016438,2]
[366116516,1750072243818,-512.5,0.00016438,2]
[366116517,1750072243830,-560.43,0.00016438,2]
[366116518,1750072243840,-612.55,0.00016438,2]
[366116519,1750072243850,-490.0,0.00016438,2]
[366116520,1750072243859,-578.49,0.00016438,2]
[366116521,1750072243869,-1034.96,0.00016438,2]
[366116522,1750072243880,-151.0,0.00016438,2]
[366116523,1750072243890,-490.0,0.00016438,2]
[366116524,1750072243900,-490.0,0.00016438,2]
[366116525,1750072243911,-490.0,0.00016438,2]
[366116526,1750072243921,-1338.81,0.00016438,2]
[366116527,1750072243931,-490.0,0.00016438,2]
[366116528,1750072243940,-490.0,0.00016438,2]
[366116529,1750072243951,-490.0,0.00016438,2]
[366116530,1750072243960,-151.0,0.00016438,2]
[366116531,1750072243970,-151.0,0.00016438,2]
[366116532,1750072243981,-549.84,0.00016438,2]
[366116533,1750072243990,-1159.5,0.00016438,2]
[366116534,1750072244001,-500.64,0.00016438,2]
[366116535,1750072244011,-470.82882036,0.00016438,2]
[366116536,1750072244021,-490.0,0.00016438,2]
[366116537,1750072244030,-1326.1,0.00016438,2]
[366116538,1750072244041,-490.0,0.00016438,2]
[366116539,1750072244050,-964.73,0.00016438,2]
[366116540,1750072244060,-1448.82,0.00016438,2]
[366116541,1750072244070,-1259.4,0.00016438,2]
[366116542,1750072244080,-490.0,0.00016438,2]
[366116543,1750072244090,-1679.78,0.00016438,2]
[366116544,1750072244100,-490.0,0.00016438,2]
[366116545,1750072244111,-490.0,0.00016438,2]
[366116546,1750072244122,-490.0,0.00016438,2]
[366116547,1750072244131,-1026.74,0.00016438,2]
[366116548,1750072244142,-1545.11,0.00016438,2]
[366116549,1750072244152,-490.0,0.00016438,2]
[366116550,1750072244162,-389.885571,0.00016438,2]
[366116551,1750072244173,-490.0,0.00016438,2]
[366116552,1750072244182,-792.68,0.00016438,2]
[366116553,1750072244192,-502.26,0.00016438,2]
[366116554,1750072244204,-389.885571,0.00016438,2]
[366116555,1750072244215,-490.0,0.00016438,2]
[366116556,1750072244226,-1403.85,0.00016438,2]
[366116557,1750072244236,-1000.1,0.00016438,2]
[366116558,1750072244246,-490.0,0.00016438,2]
[366116559,1750072244256,-1104.8,0.00016438,2]
[366116560,1750072244266,-3073.4,0.00016438,2]
[366116561,1750072244277,-492.26547634,0.00016438,2]
[366116562,1750072244288,-9123.73,0.00016438,2]
[366116563,1750072244298,-490.0,0.00016438,2]
[366116564,1750072244307,-766.3,0.00016438,2]
[366116565,1750072244319,-525.42,0.00016438,2]
[366116566,1750072244331,-490.0,0.00016438,2]
[366116567,1750072244340,-490.0,0.00016438,2]
[366116568,1750072244350,-2273.08,0.00016438,2]
[366116569,1750072244359,-2078.035046,0.00016438,2]
[366116570,1750072244369,-622.644428,0.00016438,2]